fUST/lending_fUST_20240830
["ID","MTS","AMOUNT","RATE_DAILY","PERIOD"]
[336689078,1725024643802,-500.0,0.00038089,31]
[336689079,1725024643812,-500.0,0.00038089,31]
[336689080,1725024643822,-500.0,0.00038089,31]
[336689081,1725024643832,-500.0,0.00038089,31]
[336689082,1725024643842,-500.0,0.00038089,7]
[336689083,1725024643853,-227.90339001,0.00038089,31]
[336689084,1725024643862,-500.0,0.00038089,31]
[336689085,1725024643873,-500.0,0.00038089,31]
[336689086,1725024643883,-500.0,0.00038089,31]
[336689087,1725024643893,-500.0,0.00038089,31]
[336689088,1725024643902,-500.0,0.00038089,20]
[336689089,1725024643912,-552.97968,0.00038089,31]
[336689090,1725024643923,-503.73719329,0.00038089,31]
[336689091,1725024643932,-502.21970778,0.00038089,31]
[336689092,1725024643942,-384.18026537,0.00038089,31]
[336689093,1725024643953,-500.0,0.00038089,31]
[336689094,1725024643962,-500.0,0.00038089,31]
[336689095,1725024643971,-501.05861392,0.00038089,31]
[336689096,1725024643981,-500.0,0.00038089,31]
[336689097,1725024643991,-500.0,0.00038089,31]
[336689098,1725024644000,-500.0,0.00038089,31]
[336689099,1725024644010,-500.0,0.00038089,31]
[336689100,1725024644019,-500.0,0.00038089,31]
[336689101,1725024644028,-500.0,0.00038089,31]
[336689102,1725024644038,-501.36158483,0.00038089,31]
[336689103,1725024644048,-500.0,0.00038089,31]
[336689104,1725024644057,-504.09335323,0.00038089,31]
[336689105,1725024644066,-500.0,0.00038089,31]
[336689106,1725024644075,-503.05662563,0.00038089,31]
[336689107,1725024644085,-500.0,0.00038089,31]
[336689108,1725024644094,-500.0,0.00038089,31]
[336689109,1725024644104,-669.99,0.00038089,31]
[336689110,1725024644113,-669.99,0.00038089,31]
[336689111,1725024644123,-669.99,0.00038089,31]
[336689112,1725024644131,-669.99,0.00038089,31]
[336689113,1725024644141,-669.99,0.00038089,31]
[336689114,1725024644151,-669.99,0.00038089,31]
[336689115,1725024644160,-669.99,0.00038089,31]
[336689116,1725024644170,-669.99,0.00038089,31]
[336689117,1725024644179,-669.99,0.00038089,31]
[336689118,1725024644189,-669.99,0.00038089,31]
[336689119,1725024644199,-669.99,0.00038089,31]
[336689120,1725024644208,-500.0,0.00038089,31]
[336689121,1725024644217,-500.0,0.00038089,31]
[336689122,1725024644226,-501.57173856,0.00038089,31]
[336689123,1725024644236,-500.0,0.00038089,31]
[336689124,1725024644247,-567.82166052,0.00038089,31]
[336689125,1725024644256,-500.0,0.00038089,31]
[336689126,1725024644266,-500.0,0.00038089,31]
[336689127,1725024644275,-11358.88387918,0.0003809,4]
[336689191,1725024903147,1684.35486645,0.00019,2]
[336689193,1725024922851,162.972948,0.00014247,2]
[336689209,1725025153922,228.948085,0.0001863,2]
[336689212,1725025209536,10000.0,0.0002,2]
[336689247,1725025795455,228.948085,0.0001863,2]
[336689249,1725025831734,-1624.1866758,0.00021,2]
[336689251,1725025831744,-150.0,0.00021,2]
[336689253,1725025831753,-632.94213074,0.00022,2]
[336689255,1725025831765,-1017.5894525,0.00022,2]
[336689256,1725025831800,-850.46841676,0.00022,2]
[336689257,1725025831809,-162.972948,0.00023014,2]
[336689258,1725025831819,-513.69602662,0.00024899,2]
[336689259,1725025831829,-300.0,0.00024999,2]
[336689260,1725025831844,-3951.58718798,0.00025,120]
[336689272,1725025838063,-6544.34858254,0.00025,120]
[336689273,1725025838073,-251.0,0.00025847,2]
[336689274,1725025838086,-259.7,0.00026381,4]
[336689275,1725025838098,-500.0,0.00027495,2]
[336689276,1725025838108,-259.7,0.00027719,5]
[336689277,1725025838118,-500.0,0.00028484,2]
[336689278,1725025838127,-10908.5213178,0.00028661,2]
[336689279,1725025838136,-500.0,0.000287,2]
[336689280,1725025838145,-500.0,0.00028777,2]
[336689281,1725025838154,-158.725147,0.00028842,2]
[336689282,1725025838165,-1814.62631679,0.00028939,2]
[336689283,1725025838174,-158.725147,0.00028967,2]
[336689284,1725025838183,-3000.0,0.00028968,2]
[336689285,1725025838192,-1201.2175655,0.00029039,2]
[336689286,1725025838201,-159.8661547,0.00029047,2]
[336689287,1725025838211,-259.7,0.00029056,6]
[336689288,1725025838222,-500.0,0.00029057,2]
[336689289,1725025838232,-158.725147,0.00029092,2]
[336689290,1725025838242,-199.300395,0.00029156,2]
[336689291,1725025838252,-158.725147,0.00029217,2]
[336689292,1725025838261,-1000.0,0.00029248,2]
[336689293,1725025838271,-158.725147,0.00029343,2]
[336689294,1725025838280,-158.725147,0.00029468,2]
[336689295,1725025838289,-158.725147,0.00029593,2]
[336689296,1725025838299,-158.725147,0.00029718,2]
[336689297,1725025838308,-158.725147,0.00029843,2]
[336689298,1725025838318,-158.725147,0.00029969,2]
[336689299,1725025838327,-151.0,0.0003,120]
[336689300,1725025838340,-158.725147,0.00030094,2]
[336689301,1725025838349,-158.725147,0.00030219,2]
[336689302,1725025838359,-158.725147,0.00030344,2]
[336689303,1725025838369,-259.7,0.00030394,6]
[336689304,1725025838378,-151.0,0.00031534,120]
[336689305,1725025838392,-259.7,0.00031732,7]
[336689306,1725025838402,-162.972948,0.00031781,2]
[336689307,1725025838412,-500.0,0.00032022,7]
[336689308,1725025838422,-150.0,0.00032175,14]
[336689309,1725025838432,-150.0,0.00032175,14]
[336689310,1725025838442,-200.0,0.00032175,14]
[336689311,1725025838452,-500.0,0.00032635,7]
[336689312,1725025838462,-835.87990463,0.0003289,7]
[336689313,1725025838471,-500.0,0.00032928,7]
[336689314,1725025838480,-151.0,0.00033068,120]
[336689315,1725025838490,-259.7,0.0003307,15]
[336689316,1725025838499,-500.0,0.00033931,7]
[336689317,1725025838509,-259.7,0.00034407,15]
[336689318,1725025838519,-151.0,0.00034603,120]
[336689319,1725025838529,-500.0,0.00035025,7]
[336689320,1725025838539,-5319.05600568,0.00035496,2]
[336689321,1725025838549,-1430.77163508,0.00035516,2]
[336689322,1725025838558,-8668.9421883,0.00035595,31]
[336689323,1725025838568,-10526.64,0.00035596,3]
[336689324,1725025838577,-8772.2,0.00035596,3]
[336689325,1725025838590,-426.63588472,0.00035605,7]
[336689326,1725025838603,-500.0,0.00035605,7]
[336689327,1725025838614,-500.0,0.00035605,7]
[336689328,1725025838623,-500.0,0.00035605,7]
[336689329,1725025838633,-500.0,0.00035605,7]
[336689330,1725025838642,-500.0,0.00035605,7]
[336689331,1725025838652,-500.0,0.00035605,7]
[336689332,1725025838661,-400.0,0.00035605,7]
[336689333,1725025838670,-500.0,0.00035605,7]
[336689334,1725025838679,-500.0,0.00035605,7]
[336689335,1725025838688,-500.0,0.00035605,7]
[336689336,1725025838698,-400.46220351,0.00035605,7]
[336689337,1725025838710,-99.53779649,0.00035605,7]
[336689338,1725025838720,-500.0,0.00035605,7]
[336689339,1725025838729,-500.0,0.00035605,7]
[336689340,1725025838739,-531.2626519,0.00035605,7]
[336689341,1725025838750,-500.0,0.00035605,7]
[336689342,1725025838759,-500.0,0.00035605,7]
[336689343,1725025838769,-500.0,0.00035605,7]
[336689344,1725025838778,-500.0,0.00035605,7]
[336689345,1725025838787,-224.37455676,0.00035605,5]
[336689346,1725025838796,-759.17881963,0.00035606,4]
[336689347,1725025838809,-466031.05648537,0.00035606,4]
[336689348,1725025838819,-214.46081529,0.00035616,5]
[336689349,1725025838829,-308.37265485,0.00035616,31]
[336689350,1725025838844,-500.0,0.00035616,31]
[336689351,1725025838854,-500.0,0.00035616,31]
[336689352,1725025838863,-500.0,0.00035616,31]
[336689353,1725025838873,-500.0,0.00035616,31]
[336689354,1725025838882,-500.0,0.00035616,31]
[336689355,1725025838891,-500.0,0.00035616,31]
[336689356,1725025838901,-502.63945411,0.00035616,31]
[336689357,1725025838910,-500.0,0.00035616,31]
[336689358,1725025838920,-500.0,0.00035616,31]
[336689359,1725025838930,-500.0,0.00035616,31]
[336689360,1725025838941,-500.0,0.00035616,31]
[336689361,1725025838951,-500.0,0.00035616,31]
[336689362,1725025838961,-500.0,0.00035616,31]
[336689363,1725025838971,-500.0,0.00035616,31]
[336689364,1725025838980,-500.0,0.00035616,31]
[336689365,1725025838990,-500.0,0.00035616,31]
[336689366,1725025839000,-502.89145259,0.00035616,31]
[336689367,1725025839010,-500.0,0.00035616,31]
[336689368,1725025839020,-501.23403625,0.00035616,10]
[336689369,1725025839030,-500.0,0.00035616,31]
[336689370,1725025839039,-500.0,0.00035616,31]
[336689371,1725025839050,-500.0,0.00035616,31]
[336689372,1725025839059,-502.24624725,0.00035616,31]
[336689373,1725025839069,-633.81133071,0.00035616,31]
[336689374,1725025839079,-500.0,0.00035616,31]
[336689375,1725025839096,-500.0,0.00035616,31]
[336689376,1725025839107,-500.0,0.00035616,31]
[336689377,1725025839117,-500.0,0.00035616,31]
[336689378,1725025839126,-500.0,0.00035616,31]
[336689379,1725025839137,-500.0,0.00035616,31]
[336689380,1725025839147,-500.0,0.00035616,31]
[336689381,1725025839157,-1046.2624374,0.00035616,90]
[336689382,1725025839168,-502.72684302,0.00035616,31]
[336689383,1725025839178,-500.0,0.00035616,31]
[336689384,1725025839188,-500.0,0.00035616,31]
[336689385,1725025839198,-500.0,0.00035616,31]
[336689386,1725025839208,-500.0,0.00035616,31]
[336689387,1725025839218,-504.90442376,0.00035616,31]
[336689388,1725025839229,-500.0,0.00035616,31]
[336689389,1725025839238,-500.0,0.00035616,31]
[336689390,1725025839248,-308.87016453,0.00035616,31]
[336689391,1725025839258,-500.0,0.00035616,31]
[336689392,1725025839268,-503.45219033,0.00035616,31]
[336689393,1725025839277,-500.0,0.00035616,31]
[336689394,1725025839287,-500.0,0.00035616,31]
[336689395,1725025839297,-500.0,0.00035616,31]
[336689397,1725025839307,-500.0,0.00035616,31]
[336689398,1725025839316,-504.87941688,0.00035616,31]
[336689399,1725025839326,-500.0,0.00035616,31]
[336689400,1725025839339,-500.0,0.00035616,31]
[336689401,1725025839350,-171.72825114,0.00035616,31]
[336689402,1725025839359,-500.0,0.00035616,31]
[336689403,1725025839369,-500.0,0.00035616,31]
[336689405,1725025839378,-500.0,0.00035616,31]
[336689407,1725025839388,-507.11129092,0.00035616,31]
[336689408,1725025839397,-502.34190076,0.00035616,31]
[336689409,1725025839407,-500.0,0.00035616,31]
[336689410,1725025839416,-3214.13,0.00035616,31]
[336689411,1725025839425,-500.0,0.00035616,31]
[336689412,1725025839435,-505.73439015,0.00035616,31]
[336689413,1725025839444,-500.0,0.00035616,31]
[336689414,1725025839453,-500.0,0.00035616,31]
[336689415,1725025839463,-240.68880114,0.00035616,31]
[336689416,1725025839472,-508.25812121,0.00035616,31]
[336689417,1725025839481,-500.0,0.00035616,31]
[336689418,1725025839490,-372.28753431,0.00035616,31]
[336689419,1725025839499,-500.0,0.00035616,31]
[336689420,1725025839509,-500.0,0.00035616,31]
[336689421,1725025839519,-500.0,0.00035616,31]
[336689422,1725025839528,-500.0,0.00035616,31]
[336689423,1725025839537,-500.0,0.00035616,31]
[336689424,1725025839548,-500.0,0.00035616,31]
[336689425,1725025839558,-500.45948522,0.00035616,31]
[336689426,1725025839568,-564.72001933,0.00035616,31]
[336689427,1725025839578,-154.60575532,0.00035616,31]
[336689428,1725025839590,-500.0,0.00035616,30]
[336689429,1725025839600,-500.0,0.00035616,31]
[336689430,1725025839609,-500.0,0.00035616,31]
[336689432,1725025839619,-500.0,0.00035616,31]
[336689434,1725025839628,-500.0,0.00035616,31]
[336689436,1725025839639,-500.0,0.00035616,31]
[336689437,1725025839649,-500.0,0.00035616,31]
[336689439,1725025839660,-500.0,0.00035616,31]
[336689440,1725025839669,-500.0,0.00035616,31]
[336689442,1725025839679,-500.0,0.00035616,31]
[336689444,1725025839688,-500.0,0.00035616,31]
[336689445,1725025839698,-500.0,0.00035616,31]
[336689448,1725025839707,-500.0,0.00035616,31]
[336689450,1725025839717,-500.0,0.00035616,31]
[336689452,1725025839726,-267.12875267,0.00035616,31]
[336689454,1725025839736,-337.22,0.00035616,31]
[336689456,1725025839746,-500.0,0.00035616,31]
[336689458,1725025839756,-500.0,0.00035616,31]
[336689460,1725025839765,-186.73919535,0.00035616,31]
[336689462,1725025839775,-500.0,0.00035616,31]
[336689464,1725025839785,-500.0,0.00035616,31]
[336689466,1725025839796,-500.0,0.00035616,31]
[336689468,1725025839806,-500.0,0.00035616,31]
[336689469,1725025839816,-500.0,0.00035616,31]
[336689471,1725025839826,-213.61860734,0.00035616,31]
[336689473,1725025839839,-500.0,0.00035616,31]
[336689475,1725025839849,-500.0,0.00035616,31]
[336689477,1725025839858,-500.0,0.00035616,31]
[336689478,1725025839868,-500.0,0.00035616,31]
[336689479,1725025839878,-500.0,0.00035616,31]
[336689480,1725025839887,-500.0,0.00035616,31]
[336689481,1725025839897,-500.0,0.00035616,31]
[336689482,1725025839908,-500.0,0.00035616,31]
[336689483,1725025839918,-500.0,0.00035616,31]
[336689484,1725025839928,-505.31043774,0.00035616,31]
[336689485,1725025839938,-500.0,0.00035616,31]
[336689486,1725025839948,-500.0,0.00035616,31]
[336689487,1725025839958,-500.0,0.00035616,31]
[336689488,1725025839967,-500.0,0.00035616,31]
[336689489,1725025839977,-500.0,0.00035616,31]
[336689490,1725025839987,-500.0,0.00035616,31]
[336689491,1725025839997,-500.0,0.00035616,31]
[336689492,1725025840006,-500.0,0.00035616,7]
[336689493,1725025840016,-500.0,0.00035616,31]
[336689494,1725025840026,-500.0,0.00035616,31]
[336689495,1725025840036,-500.0,0.00035616,31]
[336689496,1725025840047,-500.0,0.00035616,31]
[336689497,1725025840058,-501.05464364,0.00035616,31]
[336689498,1725025840068,-500.0,0.00035616,31]
[336689499,1725025840078,-500.0,0.00035616,31]
[336689500,1725025840094,-500.0,0.00035616,31]
[336689501,1725025840106,-500.0,0.00035616,31]
[336689502,1725025840115,-500.0,0.00035616,31]
[336689503,1725025840124,-500.0,0.00035616,31]
[336689504,1725025840134,-503.74762592,0.00035616,31]
[336689505,1725025840143,-500.0,0.00035616,31]
[336689506,1725025840153,-500.0,0.00035616,31]
[336689507,1725025840162,-500.0,0.00035616,31]
[336689508,1725025840173,-500.0,0.00035616,31]
[336689509,1725025840183,-500.0,0.00035616,31]
[336689510,1725025840193,-500.0,0.00035616,31]
[336689511,1725025840203,-501.45473404,0.00035616,31]
[336689512,1725025840301,-500.0,0.00035616,31]
[336689513,1725025840311,-500.0,0.00035616,31]
[336689514,1725025840320,-500.0,0.00035616,31]
[336689515,1725025840330,-500.0,0.00035616,31]
[336689516,1725025840344,-502.63280003,0.00035616,31]
[336689517,1725025840354,-500.0,0.00035616,31]
[336689518,1725025840364,-500.0,0.00035616,31]
[336689519,1725025840373,-500.0,0.00035616,31]
[336689520,1725025840383,-500.0,0.00035616,31]
[336689521,1725025840392,-501.1717306,0.00035616,31]
[336689522,1725025840401,-954.76,0.00035616,31]
[336689523,1725025840411,-954.76,0.00035616,31]
[336689524,1725025840420,-954.76,0.00035616,31]
[336689525,1725025840429,-954.76,0.00035616,31]
[336689526,1725025840438,-954.76,0.00035616,31]
[336689527,1725025840449,-954.76,0.00035616,31]
[336689528,1725025840458,-954.76,0.00035616,31]
[336689529,1725025840469,-954.76,0.00035616,31]
[336689530,1725025840478,-954.76,0.00035616,31]
[336689531,1725025840488,-954.76,0.00035616,31]
[336689532,1725025840498,-954.76,0.00035616,31]
[336689533,1725025840507,-500.0,0.00035616,31]
[336689534,1725025840517,-954.76,0.00035616,31]
[336689535,1725025840526,-954.76,0.00035616,31]
[336689536,1725025840536,-500.0,0.00035616,31]
[336689537,1725025840546,-500.61892161,0.00035616,31]
[336689538,1725025840555,-500.0,0.00035616,31]
[336689539,1725025840565,-500.0,0.00035616,31]
[336689540,1725025840574,-501.56465971,0.00035616,31]
[336689541,1725025840584,-347.42452185,0.00035616,31]
[336689542,1725025840598,-500.0,0.00035616,31]
[336689543,1725025840607,-500.0,0.00035616,31]
[336689544,1725025840617,-500.0,0.00035616,31]
[336689545,1725025840627,-500.0,0.00035616,31]
[336689546,1725025840637,-500.0,0.00035616,31]
[336689547,1725025840646,-500.0,0.00035616,31]
[336689548,1725025840656,-500.0,0.00035616,31]
[336689549,1725025840666,-501.04238566,0.00035616,31]
[336689550,1725025840676,-500.0,0.00035616,31]
[336689551,1725025840686,-500.0,0.00035616,31]
[336689552,1725025840696,-500.0,0.00035616,31]
[336689553,1725025840706,-500.0,0.00035616,31]
[336689554,1725025840716,-501.36383161,0.00035616,31]
[336689555,1725025840727,-500.0,0.00035616,31]
[336689556,1725025840736,-500.0,0.00035616,31]
[336689557,1725025840746,-500.0,0.00035616,31]
[336689558,1725025840756,-500.0,0.00035616,31]
[336689559,1725025840765,-500.0,0.00035616,31]
[336689560,1725025840775,-500.0,0.00035616,31]
[336689561,1725025840785,-500.0,0.00035616,31]
[336689562,1725025840795,-500.0,0.00035616,31]
[336689563,1725025840805,-500.0,0.00035616,31]
[336689564,1725025840815,-232.52979759,0.00035616,31]
[336689565,1725025840825,-500.0,0.00035616,31]
[336689566,1725025840834,-500.0,0.00035616,20]
[336689567,1725025840849,-500.0,0.00035616,31]
[336689568,1725025840858,-500.0,0.00035616,31]
[336689569,1725025840868,-500.0,0.00035616,7]
[336689570,1725025840879,-500.44140356,0.00035616,31]
[336689571,1725025840888,-181.40439459,0.00035616,31]
[336689572,1725025840898,-500.0,0.00035616,31]
[336689573,1725025840908,-500.0,0.00035616,31]
[336689574,1725025840918,-500.0,0.00035616,31]
[336689575,1725025840928,-500.0,0.00035616,31]
[336689576,1725025840937,-500.0,0.00035616,31]
[336689577,1725025840947,-504.09335323,0.00035616,31]
[336689578,1725025840958,-500.0,0.00035616,31]
[336689579,1725025840967,-503.05662563,0.00035616,31]
[336689580,1725025840977,-500.0,0.00035616,31]
[336689581,1725025840987,-500.0,0.00035616,31]
[336689582,1725025840997,-500.0,0.00035616,31]
[336689583,1725025841006,-500.0,0.00035616,31]
[336689584,1725025841016,-501.36158483,0.00035616,31]
[336689585,1725025841026,-500.0,0.00035616,31]
[336689586,1725025841036,-500.0,0.00035616,31]
[336689587,1725025841046,-500.0,0.00035616,31]
[336689588,1725025841055,-500.0,0.00035616,31]
[336689589,1725025841065,-500.0,0.00035616,31]
[336689590,1725025841074,-500.0,0.00035616,31]
[336689591,1725025841083,-500.0,0.00035616,31]
[336689592,1725025841099,-500.0,0.00035616,31]
[336689593,1725025841109,-567.82166052,0.00035616,31]
[336689594,1725025841118,-500.0,0.00035616,31]
[336689595,1725025841127,-457.01059891,0.00035616,31]
[336689596,1725025841136,-500.0,0.00035616,31]
[336689597,1725025841146,-500.0,0.00035616,31]
[336689598,1725025841155,-550.69269132,0.00035616,31]
[336689599,1725025841164,-501.57173856,0.00035616,31]
[336689600,1725025841174,-501.0901858,0.00035616,31]
[336689601,1725025841184,-500.87434867,0.00035616,31]
[336689602,1725025841193,-500.0,0.00035616,31]
[336689603,1725025841203,-500.0,0.00035616,31]
[336689604,1725025841212,-500.0,0.00035616,31]
[336689605,1725025841222,-503.43996752,0.00035616,31]
[336689606,1725025841231,-501.82917077,0.00035616,31]
[336689607,1725025841240,-500.0,0.00035616,31]
[336689608,1725025841250,-500.0,0.00035616,31]
[336689609,1725025841259,-502.44291627,0.00035616,31]
[336689610,1725025841268,-502.52473802,0.00035616,31]
[336689611,1725025841278,-500.0,0.00035616,31]
[336689612,1725025841287,-500.0,0.00035616,31]
[336689613,1725025841297,-500.0,0.00035616,31]
[336689614,1725025841306,-500.0,0.00035616,31]
[336689615,1725025841315,-500.0,0.00035616,31]
[336689616,1725025841326,-500.0,0.00035616,31]
[336689617,1725025841339,-500.0,0.00035616,31]
[336689618,1725025841349,-209.47127129,0.00035616,31]
[336689619,1725025841358,-500.0,0.00035616,31]
[336689620,1725025841368,-501.01644731,0.00035616,31]
[336689621,1725025841377,-500.0,0.00035616,31]
[336689622,1725025841387,-502.2796137,0.00035616,31]
[336689623,1725025841396,-500.0,0.00035616,31]
[336689624,1725025841405,-500.0,0.00035616,31]
[336689625,1725025841415,-500.0,0.00035616,31]
[336689626,1725025841424,-500.0,0.00035616,31]
[336689627,1725025841434,-500.0,0.00035616,31]
[336689628,1725025841444,-500.0,0.00035616,31]
[336689629,1725025841454,-507.05363032,0.00035616,31]
[336689630,1725025841463,-500.0,0.00035616,31]
[336689631,1725025841473,-1106.14,0.00035616,21]
[336689632,1725025841482,-500.0,0.00035616,31]
[336689633,1725025841491,-2681.75,0.00035616,31]
[336689634,1725025841500,-500.0,0.00035616,31]
[336689635,1725025841509,-500.0,0.00035616,31]
[336689636,1725025841518,-500.0,0.00035616,31]
[336689637,1725025841527,-500.0,0.00035616,31]
[336689638,1725025841536,-500.0,0.00035616,31]
[336689639,1725025841546,-500.0,0.00035616,31]
[336689640,1725025841555,-1444.75,0.00035616,31]
[336689641,1725025841565,-500.0,0.00035616,31]
[336689642,1725025841574,-500.0,0.00035616,31]
[336689643,1725025841583,-796.17,0.00035616,31]
[336689644,1725025841595,-500.0,0.00035616,31]
[336689645,1725025841604,-500.0,0.00035616,31]
[336689646,1725025841613,-500.0,0.00035616,31]
[336689647,1725025841623,-500.0,0.00035616,31]
[336689648,1725025841632,-500.0,0.00035616,31]
[336689649,1725025841642,-541.43444545,0.00035616,31]
[336689650,1725025841651,-500.0,0.00035616,31]
[336689651,1725025841660,-500.0,0.00035616,31]
[336689652,1725025841670,-500.0,0.00035616,31]
[336689653,1725025841679,-500.0,0.00035616,31]
[336689654,1725025841689,-500.0,0.00035616,31]
[336689655,1725025841698,-500.0,0.00035616,31]
[336689656,1725025841707,-500.0,0.00035616,31]
[336689657,1725025841717,-500.0,0.00035616,31]
[336689658,1725025841726,-478.49,0.00035616,31]
[336689659,1725025841736,-479.94940491,0.00035616,31]
[336689660,1725025841747,-501.59538685,0.00035616,31]
[336689661,1725025841757,-502.94565628,0.00035616,31]
[336689662,1725025841766,-500.0,0.00035616,31]
[336689663,1725025841775,-500.0,0.00035616,31]
[336689664,1725025841784,-500.0,0.00035616,31]
[336689665,1725025841793,-500.0,0.00035616,31]
[336689666,1725025841803,-252.08937695,0.00035616,31]
[336689667,1725025841811,-216.03856293,0.00035616,31]
[336689668,1725025841820,-573.88740182,0.00035616,31]
[336689669,1725025841829,-1371.74,0.00035616,31]
[336689670,1725025841842,-500.0,0.00035616,31]
[336689671,1725025841852,-500.0,0.00035616,31]
[336689672,1725025841861,-500.0,0.00035616,31]
[336689673,1725025841871,-465.71,0.00035616,31]
[336689674,1725025841881,-500.0,0.00035616,31]
[336689675,1725025841890,-500.0,0.00035616,31]
[336689676,1725025841899,-500.0,0.00035616,31]
[336689677,1725025841909,-500.0,0.00035616,31]
[336689678,1725025841919,-801.36,0.00035616,31]
[336689679,1725025841929,-500.0,0.00035616,31]
[336689680,1725025841938,-500.0,0.00035616,31]
[336689681,1725025841949,-500.0,0.00035616,31]
[336689682,1725025841959,-500.0,0.00035616,31]
[336689683,1725025841969,-500.0,0.00035616,31]
[336689684,1725025841979,-501.93039559,0.00035616,31]
[336689685,1725025841988,-500.0,0.00035616,31]
[336689686,1725025841998,-738.35,0.00035616,31]
[336689687,1725025842007,-500.0,0.00035616,31]
[336689688,1725025842018,-500.0,0.00035616,31]
[336689689,1725025842027,-500.0,0.00035616,31]
[336689690,1725025842037,-500.0,0.00035616,31]
[336689691,1725025842046,-500.0,0.00035616,31]
[336689692,1725025842056,-500.0,0.00035616,31]
[336689693,1725025842065,-500.0,0.00035616,31]
[336689694,1725025842075,-500.0,0.00035616,31]
[336689695,1725025842085,-1447.11,0.00035616,31]
[336689696,1725025842100,-500.0,0.00035616,31]
[336689697,1725025842109,-500.0,0.00035616,31]
[336689698,1725025842119,-2364.85,0.00035616,31]
[336689699,1725025842128,-500.0,0.00035616,31]
[336689700,1725025842138,-500.0,0.00035616,31]
[336689701,1725025842147,-500.0,0.00035616,31]
[336689702,1725025842156,-500.0,0.00035616,31]
[336689703,1725025842166,-500.0,0.00035616,31]
[336689704,1725025842176,-500.0,0.00035616,31]
[336689705,1725025842186,-500.0,0.00035616,31]
[336689706,1725025842195,-967.76,0.00035616,31]
[336689707,1725025842205,-500.0,0.00035616,31]
[336689708,1725025842214,-819.76,0.00035616,31]
[336689709,1725025842223,-500.0,0.00035616,31]
[336689710,1725025842233,-512.36830498,0.00035616,31]
[336689711,1725025842244,-500.0,0.00035616,31]
[336689712,1725025842331,-500.0,0.00035616,2]
[336689713,1725025842344,-500.0,0.00035616,31]
[336689714,1725025842353,-500.0,0.00035616,31]
[336689715,1725025842363,-500.0,0.00035616,31]
[336689717,1725025842372,-500.0,0.00035616,31]
[336689718,1725025842381,-500.0,0.00035616,31]
[336689719,1725025842390,-500.0,0.00035616,31]
[336689720,1725025842400,-500.0,0.00035616,31]
[336689721,1725025842410,-1158.83,0.00035616,31]
[336689722,1725025842419,-500.0,0.00035616,31]
[336689723,1725025842428,-500.0,0.00035616,31]
[336689724,1725025842438,-500.0,0.00035616,31]
[336689725,1725025842447,-500.0,0.00035616,31]
[336689726,1725025842457,-500.0,0.00035616,31]
[336689727,1725025842466,-500.0,0.00035616,31]
[336689728,1725025842475,-500.0,0.00035616,31]
[336689729,1725025842485,-500.0,0.00035616,31]
[336689731,1725025842494,-500.0,0.00035616,31]
[336689732,1725025842503,-500.0,0.00035616,31]
[336689733,1725025842512,-500.0,0.00035616,31]
[336689734,1725025842521,-500.0,0.00035616,31]